[Event "*** SCC Grand Prix: Titled Tuesday Blitz"]
[Site "Chess.com"]
[Date "2020.06.02"]
[Round "1"]
[White "GM_Levan_Pantsulaia"]
[Black "kuba2006"]
[Result "1-0"]
[WhiteElo "2840"]
[BlackElo "2418"]
[TimeControl "180+1"]
[EndTime "10:07:07 PDT"]
[Termination "GM_Levan_Pantsulaia won on time"]

1. Nf3 {[%clk 0:03:00.9]} 1... Nf6 {[%clk 0:03:00.9]} 2. g3 {[%clk 0:02:59.1]}
2... g6 {[%clk 0:03:01.5]} 3. b3 {[%clk 0:02:59]} 3... Bg7 {[%clk 0:03:01.5]} 4.
Bb2 {[%clk 0:02:59.6]} 4... O-O {[%clk 0:03:02]} 5. Bg2 {[%clk 0:02:59.7]} 5...
d6 {[%clk 0:03:02.5]} 6. d4 {[%clk 0:02:59.5]} 6... Nbd7 {[%clk 0:03:01.8]} 7.
O-O {[%clk 0:02:58.8]} 7... c5 {[%clk 0:03:00.9]} 8. c4 {[%clk 0:02:57.2]} 8...
Rb8 {[%clk 0:02:58.9]} 9. Nc3 {[%clk 0:02:56.4]} 9... a6 {[%clk 0:02:58.3]} 10.
e4 {[%clk 0:02:39.4]} 10... b5 {[%clk 0:02:49.3]} 11. cxb5 {[%clk 0:02:39]}
11... axb5 {[%clk 0:02:50.2]} 12. e5 {[%clk 0:02:39.4]} 12... dxe5 {[%clk
0:02:46.8]} 13. dxe5 {[%clk 0:02:39.1]} 13... Ne8 {[%clk 0:02:45.8]} 14. e6
{[%clk 0:02:33.8]} 14... fxe6 {[%clk 0:02:44.5]} 15. Qe2 {[%clk 0:02:31.8]}
15... Qb6 {[%clk 0:02:29.3]} 16. Rfe1 {[%clk 0:02:25.8]} 16... Nc7 {[%clk
0:02:19.4]} 17. Rad1 {[%clk 0:02:20.5]} 17... Nf6 {[%clk 0:01:40.4]} 18. Ng5
{[%clk 0:02:08.8]} 18... h6 {[%clk 0:01:15.8]} 19. Nf3 {[%clk 0:02:04.8]} 19...
Bb7 {[%clk 0:01:04.2]} 20. Ne5 {[%clk 0:01:56.9]} 20... Bxg2 {[%clk 0:01:01.3]}
21. Kxg2 {[%clk 0:01:57.8]} 21... g5 {[%clk 0:00:32.2]} 22. f3 {[%clk 0:01:41]}
22... Rbd8 {[%clk 0:00:26]} 23. Ng6 {[%clk 0:01:36.9]} 23... Rfe8 {[%clk
0:00:20.4]} 24. h4 {[%clk 0:01:29]} 24... gxh4 {[%clk 0:00:17]} 25. Nxh4 {[%clk
0:01:28]} 25... Nfd5 {[%clk 0:00:13.2]} 26. Ne4 {[%clk 0:01:25]} 26... e5 {[%clk
0:00:10.3]} 27. Nf2 {[%clk 0:00:57.2]} 27... c4 {[%clk 0:00:03.9]} 28. Bxe5
{[%clk 0:00:49.4]} 28... Bxe5 {[%clk 0:00:03.5]} 29. Qxe5 {[%clk 0:00:48.6]}
29... Qf6 {[%clk 0:00:04.1]} 30. bxc4 {[%clk 0:00:36]} 30... Qxe5 {[%clk
0:00:03.2]} 31. Rxe5 {[%clk 0:00:35]} 31... bxc4 {[%clk 0:00:04.1]} 32. Nf5
{[%clk 0:00:31.8]} 32... Kh7 {[%clk 0:00:03.6]} 33. Rh1 {[%clk 0:00:28.8]} 1-0

[Event "*** SCC Grand Prix: Titled Tuesday Blitz"]
[Site "Chess.com"]
[Date "2020.06.02"]
[Round "1"]
[White "jonaszmb"]
[Black "A-Adly"]
[Result "0-1"]
[WhiteElo "2414"]
[BlackElo "2829"]
[TimeControl "180+1"]
[EndTime "10:07:07 PDT"]
[Termination "A-Adly won by resignation"]

1. e4 {[%clk 0:03:00.8]} 1... c6 {[%clk 0:02:55]} 2. d4 {[%clk 0:03:00.5]} 2...
d5 {[%clk 0:02:55]} 3. Nc3 {[%clk 0:03:01]} 3... dxe4 {[%clk 0:02:53.9]} 4. Nxe4
{[%clk 0:03:01.9]} 4... Nd7 {[%clk 0:02:50]} 5. Bd3 {[%clk 0:02:58.7]} 5... Ndf6
{[%clk 0:02:44.8]} 6. Nf3 {[%clk 0:02:37.8]} 6... Nxe4 {[%clk 0:02:43.9]} 7.
Bxe4 {[%clk 0:02:38.7]} 7... Nf6 {[%clk 0:02:44]} 8. Bd3 {[%clk 0:02:39.3]} 8...
Bg4 {[%clk 0:02:43.9]} 9. c3 {[%clk 0:02:37.7]} 9... Qd5 {[%clk 0:02:41.3]} 10.
Be3 {[%clk 0:02:26]} 10... Bxf3 {[%clk 0:02:37.6]} 11. Qxf3 {[%clk 0:02:26.9]}
11... Qxf3 {[%clk 0:02:36.5]} 12. gxf3 {[%clk 0:02:27.8]} 12... e6 {[%clk
0:02:32.7]} 13. Rg1 {[%clk 0:02:27.5]} 13... g6 {[%clk 0:02:32.4]} 14. O-O-O
{[%clk 0:02:25]} 14... Bd6 {[%clk 0:02:29.9]} 15. Bh6 {[%clk 0:02:19.8]} 15...
Nd5 {[%clk 0:02:25.3]} 16. Bg7 {[%clk 0:02:07.8]} 16... Rg8 {[%clk 0:02:20.4]}
17. Be5 {[%clk 0:02:07.8]} 17... Bxe5 {[%clk 0:02:15.5]} 18. dxe5 {[%clk
0:02:08.7]} 18... Ke7 {[%clk 0:02:08.2]} 19. Be4 {[%clk 0:01:58.6]} 19... Rad8
{[%clk 0:02:04.6]} 20. Kc2 {[%clk 0:01:55.6]} 20... Nf4 {[%clk 0:02:02]} 21. Rd2
{[%clk 0:01:32.3]} 21... h5 {[%clk 0:01:50.6]} 22. b4 {[%clk 0:01:24.3]} 22...
a6 {[%clk 0:01:35.7]} 23. a4 {[%clk 0:01:23.9]} 23... Nh3 {[%clk 0:01:22.2]} 24.
Rgd1 {[%clk 0:01:19.7]} 24... Rxd2+ {[%clk 0:01:20.6]} 25. Rxd2 {[%clk
0:01:20.6]} 25... Rd8 {[%clk 0:01:20.4]} 26. b5 {[%clk 0:01:05.3]} 26... axb5
{[%clk 0:01:07.8]} 27. axb5 {[%clk 0:01:06.2]} 27... Rxd2+ {[%clk 0:01:05.2]}
28. Kxd2 {[%clk 0:01:07.1]} 28... Nxf2 {[%clk 0:01:05.2]} 29. Bc2 {[%clk
0:00:59]} 29... g5 {[%clk 0:00:57.7]} 30. Ke3 {[%clk 0:00:55.3]} 30... Nh3
{[%clk 0:00:57]} 31. Be4 {[%clk 0:00:41.3]} 31... cxb5 {[%clk 0:00:50.6]} 32.
Bxb7 {[%clk 0:00:40.9]} 32... Kd7 {[%clk 0:00:51.1]} 33. Kd4 {[%clk 0:00:34.2]}
33... Kc7 {[%clk 0:00:50]} 34. Be4 {[%clk 0:00:28.3]} 34... Ng1 {[%clk
0:00:47.2]} 35. Kc5 {[%clk 0:00:22.2]} 35... Ne2 {[%clk 0:00:43.6]} 36. Kb4
{[%clk 0:00:19.7]} 36... Kb6 {[%clk 0:00:40.7]} 37. Bh7 {[%clk 0:00:13.1]} 37...
Nf4 {[%clk 0:00:36.4]} 38. Bg8 {[%clk 0:00:12.6]} 38... Nd3+ {[%clk 0:00:36.1]}
39. Kb3 {[%clk 0:00:12.7]} 39... Nxe5 {[%clk 0:00:36.7]} 40. h4 {[%clk
0:00:09.6]} 40... gxh4 {[%clk 0:00:36.5]} 41. f4 {[%clk 0:00:10]} 41... h3
{[%clk 0:00:36.1]} 42. Bh7 {[%clk 0:00:10.4]} 42... Ng6 {[%clk 0:00:35.1]} 0-1

[Event "*** SCC Grand Prix: Titled Tuesday Blitz"]
[Site "Chess.com"]
[Date "2020.06.02"]
[Round "1"]
[White "Man-Chuk"]
[Black "MathiasWomacka"]
[Result "1-0"]
[WhiteElo "2766"]
[BlackElo "2388"]
[TimeControl "180+1"]
[EndTime "10:07:07 PDT"]
[Termination "Man-Chuk won on time"]

1. d4 {[%clk 0:02:56.5]} 1... Nf6 {[%clk 0:02:59.2]} 2. c4 {[%clk 0:02:56.3]}
2... e6 {[%clk 0:02:59.3]} 3. Nf3 {[%clk 0:02:56.5]} 3... Bb4+ {[%clk
0:02:58.4]} 4. Nbd2 {[%clk 0:02:56.3]} 4... O-O {[%clk 0:02:58]} 5. a3 {[%clk
0:02:56.6]} 5... Be7 {[%clk 0:02:57.7]} 6. e4 {[%clk 0:02:56.9]} 6... d5 {[%clk
0:02:57.7]} 7. e5 {[%clk 0:02:50.9]} 7... Nfd7 {[%clk 0:02:57.7]} 8. Bd3 {[%clk
0:02:49.7]} 8... c5 {[%clk 0:02:56.7]} 9. h4 {[%clk 0:02:49.5]} 9... g6 {[%clk
0:02:56.7]} 10. h5 {[%clk 0:02:44.8]} 10... cxd4 {[%clk 0:02:44.1]} 11. Nb3
{[%clk 0:02:44.4]} 11... Nc6 {[%clk 0:02:24]} 12. Bf4 {[%clk 0:02:35.1]} 12...
g5 {[%clk 0:02:10.7]} 13. cxd5 {[%clk 0:02:30.4]} 13... exd5 {[%clk 0:02:10]}
14. Bg3 {[%clk 0:02:23.6]} 14... g4 {[%clk 0:02:09.7]} 15. Nfxd4 {[%clk
0:02:17.8]} 15... Ndxe5 {[%clk 0:02:09.2]} 16. O-O {[%clk 0:02:01.6]} 16... Bg5
{[%clk 0:01:55.7]} 17. Bf5 {[%clk 0:01:29.6]} 17... Qf6 {[%clk 0:01:42.4]} 18.
Nxc6 {[%clk 0:01:12.5]} 18... bxc6 {[%clk 0:01:34.9]} 19. Bxc8 {[%clk
0:01:03.2]} 19... Raxc8 {[%clk 0:01:35.8]} 20. Re1 {[%clk 0:00:59.3]} 20... Bf4
{[%clk 0:01:19.5]} 21. Bxf4 {[%clk 0:00:58]} 21... Qxf4 {[%clk 0:01:20.4]} 22.
Qd4 {[%clk 0:00:54.4]} 22... Qxd4 {[%clk 0:01:12]} 23. Nxd4 {[%clk 0:00:55.3]}
23... Rfe8 {[%clk 0:01:09]} 24. Rac1 {[%clk 0:00:55.4]} 24... c5 {[%clk
0:00:51.9]} 25. Nf5 {[%clk 0:00:53.8]} 25... Re6 {[%clk 0:00:52]} 26. Red1
{[%clk 0:00:42.8]} 26... d4 {[%clk 0:00:07.1]} 27. Rxd4 {[%clk 0:00:42.8]} 27...
f6 {[%clk 0:00:04.4]} 28. Ra4 {[%clk 0:00:33.4]} 28... Rc7 {[%clk 0:00:02.9]}
29. Rd1 {[%clk 0:00:27.5]} 29... c4 {[%clk 0:00:01.8]} 30. Rd8+ {[%clk
0:00:23.9]} 30... Kf7 {[%clk 0:00:01.9]} 31. Rh8 {[%clk 0:00:24.8]} 1-0

[Event "*** SCC Grand Prix: Titled Tuesday Blitz"]
[Site "Chess.com"]
[Date "2020.06.02"]
[Round "1"]
[White "tomasdanada"]
[Black "talman67"]
[Result "0-1"]
[WhiteElo "2235"]
[BlackElo "2575"]
[TimeControl "180+1"]
[EndTime "10:07:08 PDT"]
[Termination "talman67 won on time"]

1. g3 {[%clk 0:02:27.8]} 1... e5 {[%clk 0:02:59.2]} 2. Bg2 {[%clk 0:02:28.7]}
2... Nf6 {[%clk 0:02:59.3]} 3. d3 {[%clk 0:02:23.4]} 3... d5 {[%clk 0:02:54.2]}
4. Nf3 {[%clk 0:02:21.7]} 4... Nc6 {[%clk 0:02:53.1]} 5. O-O {[%clk 0:02:22.2]}
5... Bd6 {[%clk 0:02:45.7]} 6. Nc3 {[%clk 0:02:12]} 6... O-O {[%clk 0:02:26.1]}
7. e4 {[%clk 0:02:06.3]} 7... dxe4 {[%clk 0:02:17.4]} 8. dxe4 {[%clk 0:02:00.5]}
8... h6 {[%clk 0:02:15.5]} 9. h3 {[%clk 0:01:54.7]} 9... Bc5 {[%clk 0:01:51.7]}
10. Qxd8 {[%clk 0:01:34.6]} 10... Rxd8 {[%clk 0:01:52.6]} 11. Re1 {[%clk
0:01:16.3]} 11... Be6 {[%clk 0:01:45.5]} 12. Bf1 {[%clk 0:00:45.6]} 12... a6
{[%clk 0:01:13.2]} 13. a3 {[%clk 0:00:45.2]} 13... Rd7 {[%clk 0:01:11.4]} 14.
Kg2 {[%clk 0:00:40.7]} 14... Rad8 {[%clk 0:01:08.8]} 15. Bd3 {[%clk 0:00:39.4]}
15... b5 {[%clk 0:00:50.3]} 16. b4 {[%clk 0:00:34.8]} 16... Bb6 {[%clk
0:00:47.5]} 17. Be3 {[%clk 0:00:28.5]} 17... Bxe3 {[%clk 0:00:31.7]} 18. fxe3
{[%clk 0:00:26.6]} 18... Ne8 {[%clk 0:00:22.3]} 19. Reb1 {[%clk 0:00:17.7]}
19... f6 {[%clk 0:00:17.5]} 20. a4 {[%clk 0:00:17.6]} 20... Rxd3 {[%clk
0:00:07.6]} 21. cxd3 {[%clk 0:00:14.2]} 21... Rxd3 {[%clk 0:00:08.5]} 22. axb5
{[%clk 0:00:08.5]} 22... Rxc3 {[%clk 0:00:07.6]} 23. bxc6 {[%clk 0:00:08]} 23...
Rxc6 {[%clk 0:00:08.5]} 24. b5 {[%clk 0:00:05]} 24... axb5 {[%clk 0:00:08]} 25.
Rxb5 {[%clk 0:00:04.1]} 25... Rc2+ {[%clk 0:00:08.6]} 26. Kg1 {[%clk 0:00:03.4]}
26... Bxh3 {[%clk 0:00:08.7]} 27. Rb8 {[%clk 0:00:01.8]} 27... Kf7 {[%clk
0:00:08.6]} 0-1

[Event "*** SCC Grand Prix: Titled Tuesday Blitz"]
[Site "Chess.com"]
[Date "2020.06.02"]
[Round "1"]
[White "szefru"]
[Black "Mizner"]
[Result "1-0"]
[WhiteElo "2115"]
[BlackElo "2489"]
[TimeControl "180+1"]
[EndTime "10:07:08 PDT"]
[Termination "szefru won by resignation"]

1. e4 {[%clk 0:02:46.1]} 1... e6 {[%clk 0:03:00]} 2. d4 {[%clk 0:02:45.4]} 2...
d5 {[%clk 0:03:00.9]} 3. Nd2 {[%clk 0:02:43.5]} 3... c5 {[%clk 0:03:00.3]} 4.
exd5 {[%clk 0:02:40.1]} 4... Qxd5 {[%clk 0:03:01.2]} 5. Ngf3 {[%clk 0:02:29.7]}
5... cxd4 {[%clk 0:03:01.6]} 6. Bc4 {[%clk 0:02:29.2]} 6... Qc5 {[%clk
0:03:01.9]} 7. O-O {[%clk 0:02:21.7]} 7... Nc6 {[%clk 0:03:02.4]} 8. Bb3 {[%clk
0:02:21]} 8... Nf6 {[%clk 0:02:53.3]} 9. Nc4 {[%clk 0:02:12.7]} 9... b5 {[%clk
0:02:47.6]} 10. Ncd2 {[%clk 0:02:01]} 10... Bb7 {[%clk 0:02:30.3]} 11. a4 {[%clk
0:01:58.5]} 11... a6 {[%clk 0:02:28.7]} 12. axb5 {[%clk 0:01:57.9]} 12... axb5
{[%clk 0:02:29.6]} 13. Rxa8+ {[%clk 0:01:58.2]} 13... Bxa8 {[%clk 0:02:30.4]}
14. Re1 {[%clk 0:01:58]} 14... Be7 {[%clk 0:02:30.3]} 15. Ne4 {[%clk 0:01:57]}
15... Qb6 {[%clk 0:02:25.4]} 16. Bg5 {[%clk 0:01:40.6]} 16... Nxe4 {[%clk
0:02:14.3]} 17. Rxe4 {[%clk 0:01:40]} 17... Bxg5 {[%clk 0:02:09.6]} 18. Nxg5
{[%clk 0:01:40.9]} 18... h6 {[%clk 0:01:28.5]} 19. Nxf7 {[%clk 0:01:08.9]} 19...
Nd8 {[%clk 0:00:51.3]} 20. Nxh8 {[%clk 0:01:00.2]} 20... Bxe4 {[%clk 0:00:50]}
21. Qh5+ {[%clk 0:00:59.9]} 21... Kf8 {[%clk 0:00:44.3]} 22. Qg4 {[%clk
0:00:54.2]} 22... Bf5 {[%clk 0:00:42.1]} 23. Ng6+ {[%clk 0:00:53]} 23... Ke8
{[%clk 0:00:36.1]} 24. Qg3 {[%clk 0:00:50.7]} 24... Qa5 {[%clk 0:00:22.5]} 25.
h3 {[%clk 0:00:50.2]} 25... Qa1+ {[%clk 0:00:19.7]} 26. Kh2 {[%clk 0:00:50.3]}
26... Qxb2 {[%clk 0:00:20.6]} 27. Nf4 {[%clk 0:00:46.1]} 27... Kf7 {[%clk
0:00:18.9]} 28. Qh4 {[%clk 0:00:40.5]} 28... g5 {[%clk 0:00:16.3]} 29. Qh5+
{[%clk 0:00:40.7]} 29... Kg7 {[%clk 0:00:16.6]} 30. Qe8 {[%clk 0:00:27.3]} 30...
gxf4 {[%clk 0:00:16.2]} 31. Qxd8 {[%clk 0:00:27.1]} 31... Qc3 {[%clk 0:00:15.4]}
32. Qe7+ {[%clk 0:00:26.3]} 32... Kg6 {[%clk 0:00:15.1]} 33. Bxe6 {[%clk
0:00:26.5]} 33... Qxc2 {[%clk 0:00:14.1]} 34. Qf7+ {[%clk 0:00:25.7]} 34... Kg5
{[%clk 0:00:14.6]} 35. h4+ {[%clk 0:00:26]} 35... Kxh4 {[%clk 0:00:05.9]} 36.
Bxf5 {[%clk 0:00:25.4]} 36... Qxf2 {[%clk 0:00:05.4]} 37. Qf6+ {[%clk
0:00:25.5]} 1-0

[Event "*** SCC Grand Prix: Titled Tuesday Blitz"]
[Site "Chess.com"]
[Date "2020.06.02"]
[Round "1"]
[White "DishonorOnYourCow"]
[Black "DenLaz"]
[Result "0-1"]
[WhiteElo "2294"]
[BlackElo "2631"]
[TimeControl "180+1"]
[EndTime "10:07:09 PDT"]
[Termination "DenLaz won by resignation"]

1. d4 {[%clk 0:03:00.6]} 1... d5 {[%clk 0:02:56.5]} 2. c4 {[%clk 0:02:59.9]}
2... c6 {[%clk 0:02:53.5]} 3. Nf3 {[%clk 0:02:58.8]} 3... Nf6 {[%clk 0:02:52.4]}
4. e3 {[%clk 0:02:54]} 4... g6 {[%clk 0:02:51.9]} 5. Nc3 {[%clk 0:02:50.5]} 5...
Bg7 {[%clk 0:02:51.6]} 6. Be2 {[%clk 0:02:37.2]} 6... O-O {[%clk 0:02:51.5]} 7.
O-O {[%clk 0:02:36]} 7... Ne4 {[%clk 0:02:51.6]} 8. cxd5 {[%clk 0:02:23.2]} 8...
cxd5 {[%clk 0:02:49.6]} 9. Qb3 {[%clk 0:02:22.4]} 9... Nxc3 {[%clk 0:02:47.1]}
10. bxc3 {[%clk 0:02:19.8]} 10... Nc6 {[%clk 0:02:47.5]} 11. Nd2 {[%clk
0:01:58]} 11... Na5 {[%clk 0:02:30.5]} 12. Qa4 {[%clk 0:01:56.2]} 12... b6
{[%clk 0:02:29.6]} 13. c4 {[%clk 0:01:53.3]} 13... Ba6 {[%clk 0:02:27.2]} 14.
Re1 {[%clk 0:01:39.4]} 14... Rc8 {[%clk 0:02:21.9]} 15. cxd5 {[%clk 0:01:27.6]}
15... Bxe2 {[%clk 0:02:20.9]} 16. Rxe2 {[%clk 0:01:28.5]} 16... Qxd5 {[%clk
0:02:20.8]} 17. Ba3 {[%clk 0:01:26.7]} 17... Rfe8 {[%clk 0:02:19]} 18. h3 {[%clk
0:01:22.9]} 18... e5 {[%clk 0:02:17.3]} 19. dxe5 {[%clk 0:01:16.3]} 19... Qxe5
{[%clk 0:02:13]} 20. Rd1 {[%clk 0:01:12.8]} 20... Qe6 {[%clk 0:01:58.7]} 21. Nf3
{[%clk 0:01:05.9]} 21... Nc4 {[%clk 0:01:57.1]} 22. Nd4 {[%clk 0:00:57.8]} 22...
Qe4 {[%clk 0:01:51.1]} 23. Nb5 {[%clk 0:00:48.8]} 23... a6 {[%clk 0:01:48.8]}
24. Nd4 {[%clk 0:00:33.3]} 24... b5 {[%clk 0:01:42.6]} 25. Qb3 {[%clk
0:00:20.2]} 25... Rcd8 {[%clk 0:01:42.7]} 26. Bb2 {[%clk 0:00:14.7]} 26... Nxb2
{[%clk 0:01:38.2]} 27. Rxb2 {[%clk 0:00:13]} 27... Bxd4 {[%clk 0:01:37.1]} 28.
exd4 {[%clk 0:00:13.3]} 28... Rxd4 {[%clk 0:01:37.8]} 29. Rxd4 {[%clk
0:00:10.8]} 29... Qxd4 {[%clk 0:01:38.7]} 30. Rc2 {[%clk 0:00:11.1]} 30... Qd1+
{[%clk 0:01:33.2]} 31. Kh2 {[%clk 0:00:10]} 31... Qd6+ {[%clk 0:01:33.8]} 32. g3
{[%clk 0:00:08.1]} 32... Qe6 {[%clk 0:01:34.3]} 33. Qxe6 {[%clk 0:00:06.1]}
33... Rxe6 {[%clk 0:01:35.2]} 34. Kg2 {[%clk 0:00:06.2]} 34... Re4 {[%clk
0:01:33.6]} 35. h4 {[%clk 0:00:05.9]} 35... Ra4 {[%clk 0:01:33.6]} 36. Kf3
{[%clk 0:00:06]} 36... Kg7 {[%clk 0:01:25.8]} 37. Re2 {[%clk 0:00:06]} 37... h5
{[%clk 0:01:26]} 38. Rd2 {[%clk 0:00:04.6]} 38... Kf6 {[%clk 0:01:26.3]} 39. Re2
{[%clk 0:00:04.5]} 39... Kf5 {[%clk 0:01:26.3]} 40. Rc2 {[%clk 0:00:03]} 40...
f6 {[%clk 0:01:26.7]} 41. Ke3 {[%clk 0:00:02.7]} 41... Ke5 {[%clk 0:01:26.4]}
42. f3 {[%clk 0:00:02.8]} 42... Ra3+ {[%clk 0:01:26.5]} 43. Ke2 {[%clk
0:00:03.1]} 43... f5 {[%clk 0:01:25.7]} 44. Rd2 {[%clk 0:00:02.9]} 44... f4
{[%clk 0:01:25.5]} 45. Rc2 {[%clk 0:00:03.3]} 45... fxg3 {[%clk 0:01:25.5]} 46.
Kf1 {[%clk 0:00:03.3]} 46... Rxf3+ {[%clk 0:01:25.5]} 47. Kg2 {[%clk 0:00:03.8]}
47... Ra3 {[%clk 0:01:26.1]} 48. Re2+ {[%clk 0:00:02.8]} 48... Kf4 {[%clk
0:01:26.2]} 49. Rd2 {[%clk 0:00:02.7]} 49... Ke4 {[%clk 0:01:25.1]} 50. Re2+
{[%clk 0:00:02.6]} 50... Re3 {[%clk 0:01:25]} 51. Rc2 {[%clk 0:00:02.5]} 51...
Kf5 {[%clk 0:01:23.5]} 52. Rd2 {[%clk 0:00:02.5]} 52... Ke6 {[%clk 0:01:20.7]}
53. Rd4 {[%clk 0:00:02.6]} 53... Ra3 {[%clk 0:01:20.8]} 54. Rd2 {[%clk
0:00:02.6]} 54... b4 {[%clk 0:01:21.3]} 55. Re2+ {[%clk 0:00:02.9]} 55... Kd5
{[%clk 0:01:21.4]} 56. Rd2+ {[%clk 0:00:03.3]} 56... Kc4 {[%clk 0:01:22]} 57.
Re2 {[%clk 0:00:03.7]} 57... Kd3 {[%clk 0:01:22.3]} 58. Re6 {[%clk 0:00:03.4]}
58... Rxa2+ {[%clk 0:01:21.9]} 59. Kxg3 {[%clk 0:00:03.6]} 59... b3 {[%clk
0:01:22.8]} 60. Rxg6 {[%clk 0:00:03.1]} 60... b2 {[%clk 0:01:22.9]} 61. Rb6
{[%clk 0:00:03.6]} 61... Kc2 {[%clk 0:01:23.5]} 62. Kf4 {[%clk 0:00:03.8]} 62...
b1=Q {[%clk 0:01:23.2]} 0-1

[Event "*** SCC Grand Prix: Titled Tuesday Blitz"]
[Site "Chess.com"]
[Date "2020.06.02"]
[Round "1"]
[White "woodhy"]
[Black "LiamVrolijk"]
[Result "1-0"]
[WhiteElo "2438"]
[BlackElo "2843"]
[TimeControl "180+1"]
[EndTime "10:07:11 PDT"]
[Termination "woodhy won on time"]

1. e4 {[%clk 0:02:54.2]} 1... e5 {[%clk 0:02:59.5]} 2. Nf3 {[%clk 0:02:53.6]}
2... Nc6 {[%clk 0:02:59.8]} 3. Bb5 {[%clk 0:02:51.9]} 3... a6 {[%clk 0:02:58.8]}
4. Bxc6 {[%clk 0:02:52.1]} 4... dxc6 {[%clk 0:02:58.5]} 5. O-O {[%clk 0:02:53]}
5... Bd6 {[%clk 0:02:45.6]} 6. c3 {[%clk 0:02:47.2]} 6... c5 {[%clk 0:02:37.7]}
7. Qe2 {[%clk 0:02:45.8]} 7... Qe7 {[%clk 0:02:34.7]} 8. Na3 {[%clk 0:02:45.2]}
8... Nf6 {[%clk 0:02:31.4]} 9. Re1 {[%clk 0:02:42.7]} 9... Bg4 {[%clk
0:02:25.7]} 10. Nc2 {[%clk 0:02:39.4]} 10... Nd7 {[%clk 0:02:23.8]} 11. Ne3
{[%clk 0:02:37.9]} 11... Be6 {[%clk 0:02:21.8]} 12. d4 {[%clk 0:02:32.3]} 12...
cxd4 {[%clk 0:02:19.7]} 13. cxd4 {[%clk 0:02:33.2]} 13... exd4 {[%clk
0:01:51.4]} 14. Nxd4 {[%clk 0:02:34.1]} 14... O-O {[%clk 0:01:37.6]} 15. Nef5
{[%clk 0:02:31.9]} 15... Bxf5 {[%clk 0:01:37.9]} 16. Nxf5 {[%clk 0:02:32.8]}
16... Qf6 {[%clk 0:01:30.4]} 17. Qg4 {[%clk 0:02:17.1]} 17... Ne5 {[%clk
0:01:29]} 18. Qg3 {[%clk 0:02:13.6]} 18... Nc4 {[%clk 0:01:17.3]} 19. Nxd6
{[%clk 0:02:04.3]} 19... Qxd6 {[%clk 0:01:18.2]} 20. Bf4 {[%clk 0:02:02.5]}
20... Qe6 {[%clk 0:01:10.9]} 21. b3 {[%clk 0:01:43.9]} 21... Na3 {[%clk
0:01:08.8]} 22. Rac1 {[%clk 0:01:41.3]} 22... Nb5 {[%clk 0:01:08.8]} 23. Bxc7
{[%clk 0:01:40.2]} 23... Rfc8 {[%clk 0:01:07.3]} 24. Be5 {[%clk 0:01:28.9]}
24... f6 {[%clk 0:01:06.1]} 25. Bb2 {[%clk 0:01:27.4]} 25... Rxc1 {[%clk
0:01:04.9]} 26. Rxc1 {[%clk 0:01:25.9]} 26... Rd8 {[%clk 0:00:54]} 27. Qe3
{[%clk 0:01:09.8]} 27... Nd6 {[%clk 0:00:47]} 28. f3 {[%clk 0:01:01.7]} 28...
Nf7 {[%clk 0:00:45.9]} 29. h3 {[%clk 0:00:55.5]} 29... h6 {[%clk 0:00:42.2]} 30.
Kh1 {[%clk 0:00:55.4]} 30... Qd6 {[%clk 0:00:41.4]} 31. Qc3 {[%clk 0:00:51.3]}
31... Qd2 {[%clk 0:00:40.1]} 32. Rc2 {[%clk 0:00:49.5]} 32... Qd1+ {[%clk
0:00:37.2]} 33. Kh2 {[%clk 0:00:48.8]} 33... Qd6+ {[%clk 0:00:37.8]} 34. Kh1
{[%clk 0:00:47.7]} 34... Qf4 {[%clk 0:00:38]} 35. Rc1 {[%clk 0:00:44.1]} 35...
Rd2 {[%clk 0:00:38]} 36. Rg1 {[%clk 0:00:42.4]} 36... Re2 {[%clk 0:00:34.9]} 37.
a4 {[%clk 0:00:38.2]} 37... Ne5 {[%clk 0:00:28.4]} 38. Qc8+ {[%clk 0:00:36.3]}
38... Kh7 {[%clk 0:00:28.3]} 39. Bxe5 {[%clk 0:00:36.2]} 39... Qxe5 {[%clk
0:00:26.8]} 40. Qxb7 {[%clk 0:00:35.8]} 40... a5 {[%clk 0:00:27.4]} 41. Qb5
{[%clk 0:00:33.2]} 1-0

[Event "*** SCC Grand Prix: Titled Tuesday Blitz"]
[Site "Chess.com"]
[Date "2020.06.02"]
[Round "1"]
[White "CrazyMartian"]
[Black "vlad_Sid"]
[Result "0-1"]
[WhiteElo "2299"]
[BlackElo "2637"]
[TimeControl "180+1"]
[EndTime "10:07:11 PDT"]
[Termination "vlad_Sid won by resignation"]

1. d4 {[%clk 0:03:00.9]} 1... Nf6 {[%clk 0:02:50.9]} 2. c4 {[%clk 0:02:59.7]}
2... c5 {[%clk 0:02:51]} 3. d5 {[%clk 0:02:49.7]} 3... b5 {[%clk 0:02:50.4]} 4.
cxb5 {[%clk 0:02:49.2]} 4... a6 {[%clk 0:02:50.5]} 5. bxa6 {[%clk 0:02:49]} 5...
g6 {[%clk 0:02:50.8]} 6. Nc3 {[%clk 0:02:49.1]} 6... Bg7 {[%clk 0:02:50.6]} 7.
e4 {[%clk 0:02:49.1]} 7... O-O {[%clk 0:02:51.1]} 8. Nf3 {[%clk 0:02:49.2]} 8...
Qa5 {[%clk 0:02:50.9]} 9. Bd2 {[%clk 0:02:47.5]} 9... Bxa6 {[%clk 0:02:50.6]}
10. Be2 {[%clk 0:02:47.3]} 10... e6 {[%clk 0:02:44.7]} 11. O-O {[%clk
0:02:41.4]} 11... Bxe2 {[%clk 0:02:38]} 12. Qxe2 {[%clk 0:02:39.8]} 12... Qa6
{[%clk 0:02:38.5]} 13. Qd1 {[%clk 0:02:24.5]} 13... exd5 {[%clk 0:02:35.4]} 14.
exd5 {[%clk 0:02:23]} 14... d6 {[%clk 0:02:34.5]} 15. Re1 {[%clk 0:02:20.9]}
15... Nbd7 {[%clk 0:02:23.3]} 16. Qc2 {[%clk 0:02:19.3]} 16... Nb6 {[%clk
0:02:21]} 17. b3 {[%clk 0:02:11.5]} 17... Nbxd5 {[%clk 0:02:19.7]} 18. Nxd5
{[%clk 0:02:09.3]} 18... Nxd5 {[%clk 0:02:20.6]} 19. Rab1 {[%clk 0:01:14.4]}
19... Qxa2 {[%clk 0:02:16.8]} 20. Qd3 {[%clk 0:01:12]} 20... Nb4 {[%clk
0:01:53.6]} 21. Bxb4 {[%clk 0:01:04.4]} 21... cxb4 {[%clk 0:01:54.5]} 22. Qxd6
{[%clk 0:01:03.6]} 22... Bc3 {[%clk 0:01:51.5]} 23. Red1 {[%clk 0:01:02.9]}
23... Kg7 {[%clk 0:01:50.2]} 24. h4 {[%clk 0:01:01.5]} 24... Rad8 {[%clk
0:01:48.4]} 25. Qe7 {[%clk 0:00:26.1]} 25... Rxd1+ {[%clk 0:01:41.7]} 26. Rxd1
{[%clk 0:00:26.2]} 26... Qxb3 {[%clk 0:01:41.6]} 27. Rd7 {[%clk 0:00:25.7]}
27... Bf6 {[%clk 0:01:26.6]} 28. Qc5 {[%clk 0:00:22]} 28... Qb1+ {[%clk
0:01:22.4]} 29. Kh2 {[%clk 0:00:20.6]} 29... b3 {[%clk 0:01:17.8]} 30. Rb7
{[%clk 0:00:19.7]} 30... b2 {[%clk 0:01:17.3]} 31. Ng5 {[%clk 0:00:19.1]} 31...
Qe1 {[%clk 0:01:03.4]} 32. Qc6 {[%clk 0:00:09.9]} 32... b1=Q {[%clk 0:00:52.1]}
33. Ne6+ {[%clk 0:00:09.1]} 33... Qxe6 {[%clk 0:00:23.3]} 34. Qxe6 {[%clk
0:00:05.4]} 34... Qxb7 {[%clk 0:00:21.4]} 0-1